Cogmind - Beta 14 @@@ ROGUE MODE // 2024.11.12 @ 07:46:09 Player: Shimmyarah Result: Self-destructed Performance ------------- Evolutions (1) 500 Regions Visited (2) 400 Robots Destroyed (40) 200 Value Destroyed (836) 836 Prototype IDs (0) 0 Alien Tech Used (0) 0 Bonus (0) 0 TOTAL SCORE: 1936 Bonus ------- None Cogmind --------- Core Integrity 361/400 Matter 287/300 Energy 250/250 System Corruption 0% Temperature Cool (0) Movement Walking (120) Location -9/Materials Parts ------- > --- POWER (1) -------- Ion Engine > --- PROPULSION (3) --- Aluminum Leg Aluminum Leg Aluminum Leg > --- UTILITY (2) ------ Medium Storage Unit Structural Scanner > --- WEAPON (3) ------- Light Cannon > --- INVENTORY (10) --- Aluminum Leg Heat Sink Huge Storage Unit Hardened Light Armor Plating Shield Generator Particle Cannon Grenade Launcher Grenade Launcher Maul Peak State ------------ > --- POWER ------------ Ion Engine > --- PROPULSION ------- Aluminum Leg Aluminum Leg Aluminum Leg > --- UTILITY ---------- Small Storage Unit Seismic Detector > --- WEAPON ----------- Light Cannon Light Cannon Light Cannon > --- INVENTORY -------- Aluminum Leg Structural Scanner Hardened Light Armor Plating Shield Generator Grenade Launcher Grenade Launcher Maul [Rating: 10] Favorites ----------- Power Ion Engine Engine Ion Engine Propulsion Aluminum Leg Treads Light Treads Leg Aluminum Leg Utility Small Storage Unit Device Seismic Detector Storage Small Storage Unit Weapon Light Cannon Energy Gun Medium Laser Energy Cannon Beam Cannon Ballistic Gun Light Assault Rifle Ballistic Cannon Light Cannon Impact Weapon Maul Slashing Weapon Mining Claw Build | -11 -10 -9 ------- Run | Yrd Mat Mat Slots Evolved 2 | . . 2 Power . | . . . Propulsion 1 | . . 1 Utility . | . . . Weapon 1 | . . 1 Parts Attached 35 | 8 22 5 Power 4 | 1 3 . Engine 4 | 1 3 . Core . | . . . Reactor . | . . . Propulsion 10 | 3 6 1 Treads 1 | 1 . . Leg 9 | 2 6 1 Wheel . | . . . Hover . | . . . Flight . | . . . Utility 10 | 2 5 3 Device 7 | 1 5 1 Storage 3 | 1 . 2 Processor . | . . . Hackware . | . . . Protection . | . . . Artifact . | . . . Weapon 11 | 2 8 1 Energy Gun 1 | 1 . . Energy Cannon 1 | . 1 . Ballistic Gun 2 | 1 1 . Ballistic Cannon 4 | . 3 1 Launcher . | . . . Special Weapon . | . . . Impact Weapon 2 | . 2 . Slashing Weapon 1 | . 1 . Piercing Weapon . | . . . Special Melee Weapon . | . . . Unidentified Prototypes . | . . . Parts Lost 3 | 1 . 2 Power . | . . . Propulsion . | . . . Utility 2 | 1 . 1 Weapon 1 | . . 1 Highest Loss Streak 1 | 1 . 1 To Critical Strikes . | . . . Average Slot Usage (%) 98 | . 99 95 Engine 13 | . 14 11 Leg 29 | . 28 33 Device 13 | . 13 10 Storage 13 | . 14 11 Energy Cannon 5 | . 7 . Ballistic Gun 2 | . 3 . Ballistic Cannon 18 | . 15 29 Peak Build Rating 10 | 7 9 10 Average Rating 8 | 6 8 9 On Entrance 4 | . 6 8 Naked Turns . | . . . Heaviest Build 25 | 14 17 25 Greatest Support 30 | 20 20 30 Greatest Overweight (x) . | . . . Average Overweight (x) . | . . . Largest Inventory Capacity 25 | 8 8 25 Average Capacity 8 | 7 8 9 Most Carried 9 | 8 8 9 Average Carried 7 | 6 7 8 Final Capacity 10 | 8 8 10 Final Carried 9 | 7 8 9 Class Distribution -------------------- 84% | Mutant 7% | Scavenger-Skirmisher 4% | Scavenger-Mutant 3% | Scavenger-Gunner Dominant Class ---------------- Mutant | -10/Materials Scavenger-Skirmisher | -9/Materials Resources | -11 -10 -9 ----------- Run | Yrd Mat Mat Matter Collected 1128 | 293 437 398 Remotely . | . . . Salvage Created 1146 | 186 761 199 Parts 83 | 14 58 11 Haulers Intercepted 2 | . 1 1 Recyclers Shooed 1 | . 1 . Parts Field Recycled . | . . . Retrieved Matter . | . . . Parts Self-Destructed . | . . . Prevented . | . . . Kills | -11 -10 -9 ------- Run | Yrd Mat Mat Combat Hostiles Destroyed 24 | . 19 5 Guns 5 | . 5 . Cannons 19 | . 14 5 Classes Destroyed 10 | 3 6 1 Worker 4 | 1 3 . Builder 2 | . 1 1 Tunneler 3 | 3 . . Hauler 2 | . 1 1 Recycler 1 | 1 . . Operator 2 | . 2 . Watcher 2 | . 2 . Swarmer 6 | . 6 . Grunt 16 | . 13 3 Sentry 2 | . . 2 Best Kill Streak 3 | 2 3 3 Combat Bots Only 3 | . 3 1 Max Kills in Single Turn 2 | 1 2 1 Gunslinging . | . . . Exploded . | . . . Melee . | . . . Uniques/NPCs Destroyed . | . . . Combat | -11 -10 -9 -------- Run | Yrd Mat Mat Hostile Shots Fired 110 | 7 68 35 Missed 24 | . 18 6 Damage Taken 1174 | 256 522 396 Core 249 | 120 90 39 Absorbed by Shields . | . . . Core Remaining (%) 34 | 52 16 . Volleys Fired 110 | 14 68 28 Largest 3 | 2 2 3 Hottest 105 | 70 95 105 Shots Fired 225 | 28 126 71 Gun 48 | 28 20 . Cannon 177 | . 106 71 Launcher . | . . . Special . | . . . Kinetic 172 | 14 87 71 Thermal 53 | 14 39 . Explosive . | . . . Electromagnetic . | . . . Robot Hit Streak 9 | 6 5 9 Robot Miss Streak 10 | 2 10 3 Penetration Max . | . . . Secondary Targets . | . . . Shots Hit Robots 121 | 17 63 41 Core Hits 49 | 8 31 10 Critical Kills . | . . . Critical Parts Destroyed . | . . . Critical Strikes 4 | 2 1 1 Burn 2 | 2 . . Blast 2 | . 1 1 Melee Attacks 6 | . 6 . Impact 1 | . 1 . Slashing 5 | . 5 . Piercing . | . . . Sneak Attacks . | . . . Combat Hostiles . | . . . Follow-up Attacks . | . . . Damage Inflicted 2077 | 179 1160 738 Guns 333 | 179 154 . Cannons 1697 | . 972 725 Explosions . | . . . Melee . | . . . Ramming 47 | . 34 13 Kinetic 1452 | 54 673 725 Thermal 578 | 125 453 . Explosive . | . . . Electromagnetic . | . . . Impact . | . . . Slashing . | . . . Piercing . | . . . Highest Corruption . | . . . Average Corruption . | . . . Corruption Purged . | . . . Corruption Blocked . | . . . Overload Shots . | . . . Overflow Damage . | . . . Projectiles . | . . . Explosions . | . . . Melee . | . . . Knockbacks 8 | . 7 1 Impact . | . . . Kinetic 8 | . 7 1 Secondary . | . . . Self-Inflicted Damage . | . . . Shots . | . . . Rammed . | . . . Targets Rammed 12 | . 6 6 Kicked 12 | . 6 6 Crushed . | . . . Highest Temperature 203 | 90 203 202 Average Temperature 56 | 37 49 81 Received Heat Transfer 348 | . 201 147 Siege Activations . | . . . Robots Corrupted . | . . . Combat Hostiles . | . . . Parts Fried . | . . . Impact Corruptions . | . . . Robots Melted . | . . . Combat Hostiles . | . . . Parts Melted 2 | 2 . . Heat Transferred 1480 | 518 962 . Parts Sabotaged . | . . . Parts Stolen . | . . . Parts Stripped . | . . . Power Chain Reactions . | . . . Alert | -11 -10 -9 ------- Run | Yrd Mat Mat Peak Influence 261 | 25 238 261 Initial 79 | . . 79 Average 102 | 9 130 139 Maximum Alert Level 1 | . 1 1 Low Security (%) 85 | 100 85 67 Level 1 14 | . 14 32 Level 2 . | . . . Level 3 . | . . . Level 4 . | . . . Level 5 . | . . . High Security . | . . . Max Security . | . . . Squads Dispatched 8 | . 7 1 Investigation 3 | . 3 . Extermination . | . . . Reinforcement 5 | . 4 1 Assault . | . . . Garrison . | . . . Intercept . | . . . Searches Triggered . | . . . Construction Impeded . | . . . Haulers Reinforced . | . . . Active Scanning Responses . | . . . Cargo Convoy Interrupts . | . . . Stealth | -11 -10 -9 --------- Run | Yrd Mat Mat Distress Signals 1 | . 1 . Communications Jammed . | . . . Distress Signals . | . . . Times Spotted 44 | 2 32 10 Peak Tracking Total 4 | 2 4 2 Tactical Retreats 3 | . 1 2 Traps | -11 -10 -9 ------- Run | Yrd Mat Mat Traps Triggered 2 | . 2 . Indirectly . | . . . Trap Hack Attempts . | . . . Triggered . | . . . Disarmed . | . . . Reprogrammed . | . . . Reused . | . . . Traps Extracted . | . . . Installed . | . . . Triggered . | . . . Machines | -11 -10 -9 ---------- Run | Yrd Mat Mat Machines Disabled 2 | . 2 . Max in Single Turn 1 | . 1 . Machines Repaired . | . . . Machines Dismantled . | . . . Machines Sabotaged . | . . . Overloaded Fab Kills . | . . . Hacking | -11 -10 -9 --------- Run | Yrd Mat Mat Machines Accessed 5 | . 4 1 Terminals 5 | . 4 1 Fabricators . | . . . Repair Stations . | . . . Recycling Units . | . . . Scanalyzers . | . . . Garrison Access . | . . . Total Hacks 23 | . 19 4 Successful 17 | . 14 3 Failed 6 | . 5 1 Catastrophic . | . . . Database Lockouts . | . . . Manual 23 | . 19 4 Terminals 23 | . 19 4 Fabricators . | . . . Repair Stations . | . . . Recycling Units . | . . . Scanalyzers . | . . . Garrison Access . | . . . Terminal Hacks 2 | . 2 . Part Schematic 1 | . 1 . Scanalyzer Index 1 | . 1 . Fabricator Hacks . | . . . Repair Station Hacks . | . . . Recycling Unit Hacks . | . . . Scanalyzer . | . . . Garrison Access Hacks . | . . . Unauthorized Hacks 15 | . 12 3 Terminals 15 | . 12 3 Track 4 | . 3 1 Assimilate 1 | . 1 . Botnet 5 | . 4 1 Operators 1 | . 1 . Skim 4 | . 3 1 Fabricators . | . . . Repair Stations . | . . . Recycling Units . | . . . Scanalyzers . | . . . Garrison Access . | . . . Data Cores Recovered . | . . . Used . | . . . Hacking Detections 5 | . 4 1 Full Trace Events 1 | . 1 . Feedback Events . | . . . Feedback Blocked . | . . . Robot Schematics Acquired . | . . . Robots Built . | . . . Authchips . | . . . Time . | . . . Total Robot Build Rating . | . . . Part Schematics Acquired 1 | . 1 . Parts Built . | . . . Authchips . | . . . Time . | . . . Total Part Build Rating . | . . . Parts Repaired . | . . . Time . | . . . Parts Recycled . | . . . Recycled Matter . | . . . Retrieved Matter . | . . . Retrieved Components . | . . . Parts Scanalyzed . | . . . Part Schematics Acquired . | . . . Parts Damaged . | . . . Bothacking | -11 -10 -9 ------------ Run | Yrd Mat Mat Used RIF Installer . | . . . Robots Hacked . | . . . Non-combat . | . . . Combat . | . . . Robot Hacks Applied . | . . . Relay Couplers Released . | . . . Fabnet Peak Effective % . | . . . Robots Rewired . | . . . Allies Hacked . | . . . Hacks Repelled . | . . . Allies | -11 -10 -9 -------- Run | Yrd Mat Mat Total Allies . | . . . Largest Group . | . . . Highest-Rated Group . | . . . Highest-Rated Ally . | . . . Total Orders . | . . . Ally Attacks . | . . . Total Damage . | . . . Kills . | . . . Allies Corrupted . | . . . Allies Melted . | . . . Intel | -11 -10 -9 ------- Run | Yrd Mat Mat Robot Analysis Total . | . . . Derelict Logs Recovered . | . . . Drone Launches . | . . . Drone Recoveries . | . . . Exploration | -11 -10 -9 ------------- Run | Yrd Mat Mat Turns Passed 3270 | 784 1977 509 Spaces Moved 1493 | 143 1027 323 Core 16 | 16 . . Treads 13 | 13 . . Legs 1464 | 114 1027 323 Wheels . | . . . Hover . | . . . Flight . | . . . Fastest Speed 50 | 50 120 120 Average Speed 119 | 115 120 120 Slowest Speed 160 | 160 120 120 Overloaded Moves . | . . . Propulsion Burnouts . | . . . Robots Hopped . | . . . Cave-ins Triggered . | . . . Exploration Rate (%) 45 | 9 97 29 Regions Visited 2 Branch Regions . Pre-discovered Areas . | . . . Known Exits Taken . | . . . Unknown Exits Taken 2 | 1 1 . Scrap Searched . | . . . Spaces Dug 5 | . 5 . Terrain Destroyed 5 | . 5 . Melee 5 | . 5 . Projectile . | . . . AOE . | . . . Terrain Rammed . | . . . Walls Destroyed . | . . . Machines Disabled . | . . . Actions | -11 -10 -9 --------- Run | Yrd Mat Mat Total 2761 | 737 1639 385 Wait 1032 | 554 462 16 Move 1491 | 142 1026 323 Hop . | . . . Pick Up 42 | 16 22 4 Fast Attach 2 | . 1 1 Attach 12 | 8 2 2 Detach 1 | 1 . . Swap 21 | . 19 2 Drop 32 | 2 27 3 Fire 110 | 14 68 28 Melee 6 | . 6 . Ram . | . . . Kick 12 | . 6 6 Crush . | . . . Escape Stasis . | . . . Rewire . | . . . Trap . | . . . Miscellaneous . | . . . Route ------- -11/Scrapyard -10/Materials (discovered 5 exits: *Mat x3 / [*Min x2]) -9/Materials (discovered 1 exit: [*Mat]) History --------- Turn | Location | Event 9 | -11/Scrapyard | Discovered new exit (range 13) 778 | -11/Scrapyard | Assembled infested the area 785 | -11/Scrapyard | Entered Materials 786 | -10/Materials | Build established: Mutant 931 | -10/Materials | Discovered new exit (range 15) 956 | -10/Materials | Core integrity fell below 50% 1130 | -10/Materials | Discovered new exit (range 16) 1907 | -10/Materials | Discovered new exit (range 8) 2079 | -10/Materials | Discovered new exit (range 12) 2273 | -10/Materials | Core integrity fell below 20% 2527 | -10/Materials | Discovered new exit (range 7) 2762 | -10/Materials | Entered another Materials area 2762 | -9/Materials | Evolved 2 slots: Propulsion x1, Weapon x1 3230 | -9/Materials | Discovered new exit (range 14) 3271 | -9/Materials | Self-destructed Last Messages --------------- 03123_ Dropped Lgt. Cannon. 03123_ Acquired Particle Cannon. 03138_ R-06 Scavenger collects Lgt. Cannon. 03147_ G-34 Mercenary destroyed. 03148_ R-06 Scavenger collects Aluminum Leg. 03151_ R-06 Scavenger collects Heat Sink. 03151_ Kicked R-06 Scavenger. 03151_ R-06 Scavenger collects Aluminum Leg. 03152_ Kicked R-06 Scavenger out of the way. 03155_ Acquired 8 matter. 03173_ Kicked K-01 Serf out of the way. 03175_ Kicked T-07 Excavator out of the way. 03213_ G-34 Mercenary destroyed. 03216_ A-02 Transporter Ion Engine blasted off. 03228_ Acquired 42 matter. 03230_ Acquired 1 matter. 03230_ EXIT=FOUND 03233_ Acquired 3 matter. 03265_ Lgt. Cannon destroyed. Map ----- +----------------------------------------------------+ | ??## + + t=! + #= ## | | ??## # ##### ==! """=#== ###########+### | | ??## # =! ##### """ ### ########### ### | | ??## + =! ##?## """ ### ##???###### ### | | ??## # !! [##?## % % %### ##???######+### | | ??## # ##?########## ### ##???## ## | | ??## + ##?############## ##???## ## | | ??## ####### #######????###### ##???##""" ## | | ??############# #######????????##+##???##""" # | | ??############# % ##????????# ???##""" + | | ??################ ##????????????????## # | | ??## ###### # ????????????????####+#### | | ?? # """ ###### # ????????????????## ## | | ?? # """ %###### # ????????????????## | | ?? # """ # # ????????????????## | | ?? # % +% + ????????????????## ! | | ?? # """ # T # ????????????????## [ ### | | ?? # """ # % # ????????????????#### ##### | | ?? #= """ # # ????????????????#### ##### | | ?? # !# # ??????????????????## ???## | | ?? ########## % ##??????????????????## ???## | | ?? # # ##?????????####?????## #?###+ | | ?? # # #######????####?????## #?# | | ?? # # """ ###### ??? ##?????## #?# | | ?? # # """ % # ? ########## #?# | | ?? # %/% """ @# ""##?# # #?# | | ??## !! # """ + Y"##?# # #?# | | ??## !! # % # ""##?# # #?# | | ??## !! # # ? ##?# # ###### | | ??## # * ##??#####?# # | | ??#######+### ! ########### + | | ??####### ### * ########### # | | ???????##+####+######## # ## ######## | | ???????## ## # """ ## # | | ???????## ## # """ ## # | | ???????## ## # """ ## # | | ???????## ## + ## # | | ???????##! ! ## # "" ######## | | ???????################ # "Y ##?????# | | ???????######### # # "" ##?????# | | ????????????????????? # # ##?????# | | ????????????????????? + ###########?????######## | | ????????????????????? # < ###########????????????? | | ????????????????????? # ##?????????????????????? | | ????????????????????? ######?????????????????????? | | ?????????????????????#######?????????????????????? | | ?????????????????????????????????????????????????? | | ?????????????????????????????????????????????????? | | ?????????????????????????????????????????????????? | | ?????????????????????????????????????????????????? | +----------------------------------------------------+ Best States ------------- Heat Dissipation 28 Energy Generation 10 Energy Capacity 250 Matter Stores 300 Matter Capacity 300 Sight Range 16 Terrain Scan Range 16 Terrain Scan Density 10 Evasion (%) 55 Recoil Reduction 1 Item Schematics ----------------- Lrg. Storage Unit | -10/Materials | Hacked Robot Schematics ------------------ None Fabricated ------------ Nothing Alien Tech Used ----------------- None Achievements -------------- Curiosity Killed The Cat Quantum Hacking Challenges ------------ None Game ------ Seed DeepMeleePerforator Manual? 0 Play Time 00:29:05 Cumulative 34.2 hours Start 2024.11.11 @ 22:20:29 End 2024.11.12 @ 07:46:09 Sessions 4 Manual Loads 0 Difficulty Rogue Special Mode None Game No. 69 Rogue 69 Adventurer 0 Explorer 0 Win Type - Total 0 Types 0/0/0/0/0/0/0/0/0 Lore% 14 Gallery% 25 Achievement% 23 Wizard Run 0 Options --------- Layout 1 ASCII 0 Keyboard 0 Movement Arrows Keybinds 0 Fullscreen 1 Font 24/Smallcaps Map View 50x40 Zoom Use 7% Tactical HUD 1 Map Filters NONE Filters NONE Steam 1 RUN: ae1287fe-92a6-4290-a259-7ee86a0031af